fUSD/lending_fUSD_20240116
["ID","MTS","AMOUNT","RATE_DAILY","PERIOD"]
[311770785,1705384240781,-2110.94,0.00022149,2]
[311770787,1705384240791,-500.0,0.00022149,2]
[311770789,1705384240801,-562.48,0.00022149,2]
[311770790,1705384240810,-639.97,0.00022149,2]
[311770792,1705384240820,-1454.18,0.00022149,2]
[311770794,1705384240829,-588.65,0.00022149,2]
[311770797,1705384240839,-500.0,0.00022149,2]
[311770799,1705384240849,-500.0,0.00022149,2]
[311770800,1705384240858,-955.64,0.00022149,2]
[311770803,1705384240867,-503.9,0.00022149,2]
[311770805,1705384240879,-509.03,0.00022149,2]
[311770807,1705384240888,-1148.2,0.00022149,2]
[311770809,1705384240898,-805.89,0.00022149,2]
[311770811,1705384240907,-1016.8,0.00022149,2]
[311770813,1705384240916,-524.1,0.00022149,2]
[311770815,1705384240925,-500.0,0.00022149,2]
[311770817,1705384240935,-500.0,0.00022149,2]
[311770819,1705384240944,-500.0,0.00022149,2]
[311770821,1705384240953,-914.57,0.00022149,2]
[311770823,1705384240962,-503.65,0.00022149,2]
[311770825,1705384240971,-626.79,0.00022149,2]
[311770827,1705384240980,-500.0,0.0002215,2]
[311770829,1705384240989,-500.0,0.0002215,2]
[311770831,1705384240999,-509.00353032,0.0002215,2]
[311770833,1705384241008,-500.0,0.0002215,2]
[311770835,1705384241017,-500.0,0.0002215,2]
[311770837,1705384241027,-500.0,0.0002215,2]
[311770839,1705384241036,-535.2797307,0.0002215,2]
[311770841,1705384241046,-500.0,0.0002215,2]
[311770843,1705384241056,-500.0,0.0002215,2]
[311770845,1705384241065,-500.0,0.0002215,2]
[311770847,1705384241074,-500.0,0.0002215,2]
[311770849,1705384241083,-543.43,0.0002215,2]
[311770851,1705384241093,-500.0,0.0002215,2]
[311770853,1705384241102,-500.0,0.0002215,2]
[311770855,1705384241111,-500.0,0.0002215,2]
[311770857,1705384241120,-500.0,0.0002215,2]
[311770859,1705384241129,-500.0,0.0002215,2]
[311770861,1705384241138,-500.0,0.0002215,2]
[311770864,1705384241147,-566.26,0.0002215,2]
[311770866,1705384241157,-500.0,0.0002215,2]
[311770868,1705384241167,-500.0,0.0002215,2]
[311770870,1705384241176,-500.0,0.0002215,2]
[311770872,1705384241185,-500.0,0.0002215,2]
[311770874,1705384241194,-500.0,0.0002215,2]
[311770876,1705384241203,-500.0,0.0002215,2]
[311770878,1705384241212,-500.0,0.0002215,2]
[311770879,1705384241221,-500.0,0.0002215,2]
[311770880,1705384241230,-500.0,0.0002215,2]
[311770881,1705384241240,-500.0,0.0002215,2]
[311770882,1705384241249,-500.0,0.0002215,2]
[311770883,1705384241257,-500.0,0.0002215,2]
[311770884,1705384241266,-500.0,0.0002215,2]
[311770885,1705384241275,-500.0,0.0002215,2]
[311770886,1705384241284,-588.87146392,0.0002215,2]
[311770888,1705384241294,-504.65,0.0002215,2]
[311770890,1705384241303,-500.0,0.0002215,2]
[311770892,1705384241312,-500.0,0.0002215,2]
[311770894,1705384241322,-500.0,0.0002215,2]
[311770896,1705384241331,-500.0,0.0002215,2]
[311770898,1705384241341,-528.67,0.0002215,2]
[311770900,1705384241350,-500.0,0.0002215,2]
[311770902,1705384241359,-500.0,0.0002215,2]
[311770904,1705384241368,-546.9,0.0002215,2]
[311770906,1705384241377,-500.0,0.0002215,2]
[311770908,1705384241386,-500.0,0.0002215,2]
[311770910,1705384241395,-615.58868029,0.0002215,2]
[311770912,1705384241405,-500.0,0.0002215,2]
[311770914,1705384241414,-500.0,0.0002215,2]
[311770916,1705384241423,-500.0,0.0002215,2]
[311770918,1705384241432,-500.0,0.0002215,2]
[311770920,1705384241443,-500.0,0.0002215,2]
[311770922,1705384241453,-500.0,0.0002215,2]
[311770924,1705384241462,-500.0,0.0002215,2]
[311770926,1705384241471,-527.76,0.0002215,2]
[311770928,1705384241480,-500.0,0.0002215,2]
[311770930,1705384241490,-500.0,0.0002215,2]
[311770932,1705384241499,-500.0,0.0002215,2]
[311770934,1705384241508,-500.0,0.0002215,2]
[311770936,1705384241519,-500.0,0.0002215,2]
[311770937,1705384241528,-500.0,0.0002215,2]
[311770939,1705384241538,-500.0,0.0002215,2]
[311770941,1705384241547,-500.0,0.0002215,2]
[311770943,1705384241556,-500.0,0.0002215,2]
[311770945,1705384241565,-500.0,0.0002215,2]
[311770947,1705384241574,-187.17891875,0.0002215,2]
[311770949,1705384241583,-500.0,0.0002215,2]
[311770951,1705384241593,-511.43,0.0002215,2]
[311770953,1705384241602,-500.0,0.0002215,2]
[311770955,1705384241611,-500.0,0.0002215,2]
[311770958,1705384241621,-500.0,0.0002215,2]
[311770960,1705384241631,-500.0,0.0002215,2]
[311770962,1705384241640,-500.0,0.0002215,2]
[311770964,1705384241649,-500.0,0.0002215,2]
[311770966,1705384241660,-500.0,0.0002215,2]
[311770968,1705384241669,-500.0,0.0002215,2]
[311770970,1705384241679,-500.0,0.0002215,2]
[311770972,1705384241688,-500.0,0.0002215,2]
[311770974,1705384241697,-500.0,0.0002215,2]
[311770976,1705384241706,-500.0,0.0002215,2]
[311770978,1705384241715,-500.0,0.0002215,2]
[311770980,1705384241724,-500.0,0.0002215,2]
[311770982,1705384241734,-500.0,0.0002215,2]
[311770984,1705384241744,-500.0,0.0002215,2]
[311770986,1705384241753,-500.0,0.0002215,2]
[311770988,1705384241762,-500.0,0.0002215,2]
[311770990,1705384241771,-500.0,0.0002215,2]
[311770992,1705384241780,-500.0,0.0002215,2]
[311770994,1705384241789,-614.20111649,0.0002215,2]
[311770996,1705384241799,-500.0,0.0002215,2]
[311770998,1705384241808,-679.73,0.0002215,2]
[311771000,1705384241818,-191.85236811,0.0002215,2]
[311771002,1705384241827,-500.0,0.0002215,2]
[311771004,1705384241837,-749.85,0.0002215,2]
[311771032,1705384242075,-815.57,0.0002215,2]
[311771034,1705384242084,-500.0,0.0002215,2]
[311771036,1705384242094,-500.0,0.0002215,2]
[311771038,1705384242103,-824.19,0.0002215,2]
[311771040,1705384242112,-500.0,0.0002215,2]
[311771042,1705384242121,-500.0,0.0002215,2]
[311771044,1705384242130,-500.0,0.0002215,2]
[311771046,1705384242140,-500.0,0.0002215,2]
[311771048,1705384242150,-500.0,0.0002215,2]
[311771050,1705384242160,-500.0,0.0002215,2]
[311771052,1705384242169,-500.0,0.0002215,2]
[311771053,1705384242178,-595.20030504,0.0002215,2]
[311771054,1705384242187,-500.0,0.0002215,2]
[311771055,1705384242197,-500.0,0.0002215,2]
[311771056,1705384242206,-500.0,0.0002215,2]
[311771057,1705384242217,-728.18,0.0002215,2]
[311771058,1705384242226,-500.0,0.0002215,2]
[311771059,1705384242235,-500.0,0.0002215,2]
[311771060,1705384242244,-546.93,0.0002215,2]
[311771061,1705384242254,-652.53,0.0002215,2]
[311771064,1705384242263,-500.0,0.0002215,2]
[311771066,1705384242273,-500.0,0.0002215,2]
[311771068,1705384242282,-500.0,0.0002215,2]
[311771070,1705384242291,-500.0,0.0002215,2]
[311771072,1705384242300,-500.0,0.0002215,2]
[311771074,1705384242309,-500.0,0.0002215,2]
[311771076,1705384242319,-500.0,0.0002215,2]
[311771078,1705384242328,-584.87098994,0.0002215,2]
[311771080,1705384242337,-500.0,0.0002215,2]
[311771081,1705384242346,-500.0,0.0002215,2]
[311771083,1705384242356,-500.0,0.0002215,2]
[311771085,1705384242365,-500.0,0.0002215,2]
[311771087,1705384242374,-500.0,0.0002215,2]
[311771089,1705384242384,-533.95,0.0002215,2]
[311771091,1705384242393,-500.0,0.0002215,2]
[311771092,1705384242402,-500.0,0.0002215,2]
[311771093,1705384242411,-500.0,0.0002215,2]
[311771094,1705384242421,-2227.75,0.0002215,2]
[311771095,1705384242430,-500.0,0.0002215,2]
[311771096,1705384242440,-500.0,0.0002215,2]
[311771097,1705384242450,-500.0,0.0002215,2]
[311771098,1705384242460,-500.0,0.0002215,2]
[311771099,1705384242469,-500.0,0.0002215,2]
[311771100,1705384242478,-500.0,0.0002215,2]
[311771101,1705384242488,-500.0,0.0002215,2]
[311771102,1705384242497,-500.0,0.0002215,2]
[311771103,1705384242506,-1176.23,0.0002215,2]
[311771104,1705384242516,-500.0,0.0002215,2]
[311771105,1705384242526,-500.0,0.0002215,2]
[311771106,1705384242535,-500.0,0.0002215,2]
[311771107,1705384242544,-553.61,0.0002215,2]
[311771108,1705384242554,-500.0,0.0002215,2]
[311771109,1705384242563,-520.86,0.0002215,2]
[311771110,1705384242573,-642.22,0.0002215,2]
[311771111,1705384242582,-510.5,0.0002215,2]
[311771112,1705384242592,-500.0,0.0002215,2]
[311771113,1705384242601,-500.0,0.0002215,2]
[311771114,1705384242611,-500.0,0.0002215,2]
[311771115,1705384242621,-704.48,0.0002215,2]
[311771116,1705384242630,-500.0,0.0002215,2]
[311771117,1705384242639,-658.03,0.0002215,2]
[311771119,1705384242648,-500.0,0.0002215,2]
[311771121,1705384242658,-1010.31,0.0002215,2]
[311771122,1705384242667,-500.0,0.0002215,2]
[311771123,1705384242677,-500.0,0.0002215,2]
[311771124,1705384242687,-1182.94,0.0002215,2]
[311771125,1705384242697,-500.0,0.0002215,2]
[311771126,1705384242706,-500.0,0.0002215,2]
[311771127,1705384242716,-500.0,0.0002215,2]
[311771128,1705384242725,-250.0,0.0002215,2]
[311771129,1705384242734,-500.0,0.0002215,2]
[311771130,1705384242743,-685.86,0.0002215,2]
[311771131,1705384242753,-500.0,0.0002215,2]
[311771133,1705384242764,-500.0,0.0002215,2]
[311771135,1705384242773,-500.0,0.0002215,2]
[311771137,1705384242783,-598.25,0.0002215,2]
[311771139,1705384242792,-562.57,0.0002215,2]
[311771141,1705384242801,-500.0,0.0002215,2]
[311771143,1705384242811,-500.0,0.0002215,2]
[311771145,1705384242821,-500.0,0.0002215,2]
[311771147,1705384242830,-500.0,0.0002215,2]
[311771149,1705384242840,-500.0,0.0002215,2]
[311771151,1705384242850,-872.57,0.0002215,2]
[311771153,1705384242859,-2332.79,0.0002215,2]
[311771155,1705384242869,-500.2,0.0002215,2]
[311771157,1705384242879,-502.31,0.0002215,2]
[311771159,1705384242888,-500.0,0.0002215,2]
[311771161,1705384242898,-664.81,0.0002215,2]
[311771163,1705384242907,-526.43,0.0002215,2]
[311771165,1705384242917,-769.03,0.0002215,2]
[311771167,1705384242926,-705.3,0.0002215,2]
[311771169,1705384242936,-500.0,0.0002215,2]
[311771171,1705384242946,-712.78,0.0002215,2]
[311771173,1705384242955,-624.95,0.0002215,2]
[311771175,1705384242965,-549.13,0.0002215,2]
[311771177,1705384242974,-500.0,0.0002215,2]
[311771179,1705384242983,-1039.81,0.0002215,2]
[311771181,1705384242993,-507.84,0.0002215,2]
[311771183,1705384243002,-951.31,0.0002215,2]
[311771185,1705384243011,-500.0,0.0002215,2]
[311771187,1705384243021,-1077.66,0.0002215,2]
[311771189,1705384243031,-500.0,0.0002215,2]
[311771191,1705384243041,-782.39,0.0002215,2]
[311771193,1705384243050,-3586.75,0.0002215,2]
[311771195,1705384243064,-500.0,0.0002215,2]
[311771197,1705384243074,-500.0,0.0002215,2]
[311771200,1705384243083,-578.43,0.0002215,2]
[311771201,1705384243092,-909.2,0.0002215,2]
[311771204,1705384243101,-500.0,0.0002215,2]
[311771206,1705384243110,-500.0,0.0002215,2]
[311771207,1705384243120,-500.0,0.0002215,2]
[311771209,1705384243130,-962.94,0.0002215,2]
[311771211,1705384243140,-500.0,0.0002215,2]
[311771212,1705384243149,-705.28,0.0002215,2]
[311771213,1705384243159,-566.56,0.0002215,2]
[311771214,1705384243169,-558.22,0.0002215,2]
[311771215,1705384243178,-500.0,0.0002215,2]
[311771216,1705384243187,-725.41,0.0002215,2]
[311771217,1705384243197,-759.41,0.0002215,2]
[311771218,1705384243206,-631.13,0.0002215,2]
[311771219,1705384243216,-500.0,0.0002215,2]
[311771220,1705384243225,-1045.35,0.0002215,2]
[311771221,1705384243234,-500.0,0.0002215,2]
[311771222,1705384243244,-500.0,0.0002215,2]
[311771223,1705384243253,-500.0,0.0002215,2]
[311771224,1705384243263,-490.58914663,0.0002215,2]
[311771225,1705384243272,-1784.34,0.0002215,2]
[311771226,1705384243282,-500.0,0.0002215,2]
[311771227,1705384243292,-528.58,0.0002215,2]
[311771228,1705384243301,-556.53,0.0002215,2]
[311771229,1705384243311,-598.96,0.0002215,2]
[311771230,1705384243321,-500.0,0.0002215,2]
[311771231,1705384243330,-500.0,0.0002215,2]
[311771232,1705384243340,-500.0,0.0002215,2]
[311771233,1705384243351,-500.0,0.0002215,2]
[311771234,1705384243361,-500.0,0.0002215,2]
[311771235,1705384243371,-600.0,0.0002215,2]
[311771236,1705384243381,-747.84,0.0002215,2]
[311771237,1705384243390,-500.0,0.0002215,2]
[311771238,1705384243401,-500.0,0.0002215,2]
[311771239,1705384243412,-615.97,0.0002215,2]
[311771240,1705384243422,-635.16,0.0002215,2]
[311771241,1705384243433,-500.0,0.0002215,2]
[311771242,1705384243444,-500.0,0.0002215,2]
[311771243,1705384243458,-624.42,0.0002215,2]
[311771244,1705384243469,-1341.08,0.0002215,2]
[311771245,1705384243478,-500.0,0.0002215,2]
[311771246,1705384243487,-500.0,0.0002215,2]
[311771247,1705384243498,-500.0,0.0002215,2]
[311771248,1705384243507,-500.0,0.0002215,2]
[311771249,1705384243517,-1041.55,0.0002215,2]
[311771250,1705384243526,-713.19,0.0002215,2]
[311771251,1705384243537,-825.53,0.0002215,2]
[311771252,1705384243548,-500.0,0.0002215,2]
[311771253,1705384243559,-500.0,0.0002215,2]
[311771254,1705384243569,-500.0,0.0002215,2]
[311771255,1705384243578,-500.0,0.0002215,2]
[311771256,1705384243588,-500.0,0.0002215,2]
[311771257,1705384243597,-500.0,0.0002215,2]
[311771258,1705384243606,-1011.96,0.0002215,2]
[311771259,1705384243615,-500.0,0.0002215,2]
[311771260,1705384243625,-338.4076835,0.0002215,2]
[311771261,1705384243635,-500.0,0.0002215,2]
[311771262,1705384243644,-511.91,0.0002215,2]
[311771263,1705384243654,-832.41,0.0002215,2]
[311771264,1705384243663,-500.0,0.0002215,2]
[311771265,1705384243673,-684.84,0.0002215,2]
[311771266,1705384243682,-500.0,0.0002215,2]
[311771267,1705384243692,-500.0,0.0002215,2]
[311771268,1705384243703,-1102.65,0.0002215,2]
[311771269,1705384243714,-594.9,0.0002215,2]
[311771270,1705384243723,-500.0,0.0002215,2]
[311771271,1705384243733,-2298.13,0.0002215,2]
[311771272,1705384243742,-500.0,0.0002215,2]
[311771273,1705384243751,-500.0,0.0002215,2]
[311771274,1705384243761,-574.47,0.0002215,2]
[311771275,1705384243777,-500.0,0.0002215,2]
[311771276,1705384243792,-835.15,0.0002215,2]
[311771277,1705384243808,-525.33,0.0002215,2]
[311771278,1705384243818,-540.3,0.0002215,2]
[311771279,1705384243827,-603.45,0.0002215,2]
[311771280,1705384243836,-500.0,0.0002215,2]
[311771281,1705384243846,-500.0,0.0002215,2]
[311771282,1705384243862,-500.0,0.0002215,2]
[311771283,1705384243878,-500.0,0.0002215,2]
[311771284,1705384243887,-626.1,0.0002215,2]
[311771285,1705384243897,-804.52,0.0002215,2]
[311771286,1705384243906,-500.0,0.0002215,2]
[311771287,1705384243916,-688.7,0.0002215,2]
[311771288,1705384243926,-500.0,0.0002215,2]
[311771289,1705384243935,-500.0,0.0002215,2]
[311771290,1705384243945,-500.0,0.0002215,2]
[311771291,1705384243954,-500.0,0.0002215,2]
[311771292,1705384243963,-751.35,0.0002215,2]
[311771293,1705384243973,-578.67,0.0002215,2]
[311771294,1705384243982,-2213.84,0.0002215,2]
[311771295,1705384243992,-1786.58,0.0002215,2]
[311771296,1705384244001,-235.66369284,0.0002215,2]
[311771297,1705384244010,-500.0,0.0002215,2]
[311771298,1705384244020,-500.0,0.0002215,2]
[311771299,1705384244029,-500.0,0.0002215,2]
[311771300,1705384244039,-570.45,0.0002215,2]
[311771301,1705384244048,-830.89,0.0002215,2]
[311771302,1705384244057,-500.0,0.0002215,2]
[311771303,1705384244067,-500.0,0.0002215,2]
[311771304,1705384244076,-500.0,0.0002215,2]
[311771305,1705384244086,-231.36359404,0.0002215,2]
[311771306,1705384244095,-500.0,0.0002215,2]
[311771307,1705384244105,-959.55,0.0002215,2]
[311771308,1705384244114,-1682.45,0.0002215,2]
[311771309,1705384244124,-500.0,0.0002215,2]
[311771310,1705384244133,-500.0,0.0002215,2]
[311771311,1705384244142,-500.0,0.0002215,2]
[311771312,1705384244151,-954.37,0.0002215,2]
[311771313,1705384244161,-585.64,0.0002215,2]
[311771314,1705384244170,-1276.34,0.0002215,2]
[311771315,1705384244179,-736.42,0.0002215,2]
[311771316,1705384244189,-643.48,0.0002215,2]
[311771317,1705384244198,-706.75,0.0002215,2]
[311771318,1705384244207,-522.47,0.0002215,2]
[311771319,1705384244216,-818.94,0.0002215,2]
[311771320,1705384244226,-500.0,0.0002215,2]
[311771321,1705384244236,-1025.0,0.0002215,2]
[311771322,1705384244246,-835.08,0.0002215,2]
[311771323,1705384244255,-500.0,0.0002215,2]
[311771324,1705384244265,-500.0,0.0002215,2]
[311771325,1705384244275,-822.11,0.0002215,2]
[311771326,1705384244285,-500.0,0.0002215,2]
[311771327,1705384244295,-623.81,0.0002215,2]
[311771328,1705384244304,-2176.22,0.0002215,2]
[311771329,1705384244314,-508.82,0.0002215,2]
[311771330,1705384244324,-500.0,0.0002215,2]
[311771331,1705384244334,-500.0,0.0002215,2]
[311771332,1705384244343,-500.0,0.0002215,2]
[311771333,1705384244352,-500.0,0.0002215,2]
[311771334,1705384244362,-898.35,0.0002215,2]
[311771335,1705384244371,-500.0,0.0002215,2]
[311771336,1705384244381,-500.0,0.0002215,2]
[311771337,1705384244390,-2918.98,0.0002215,2]
[311771338,1705384244479,-590.4,0.0002215,2]
[311771339,1705384244489,-300.0,0.0002215,2]
[311771340,1705384244498,-500.0,0.0002215,2]
[311771341,1705384244506,-1660.23,0.0002215,2]
[311771342,1705384244515,-619.57,0.0002215,2]
[311771343,1705384244524,-500.0,0.0002215,2]
[311771344,1705384244533,-500.0,0.0002215,2]
[311771345,1705384244543,-656.63,0.0002215,2]
[311771346,1705384244552,-500.0,0.0002215,2]
[311771347,1705384244561,-2053.8,0.0002215,2]
[311771348,1705384244571,-500.0,0.0002215,2]
[311771349,1705384244580,-2556.9,0.0002215,2]
[311771350,1705384244589,-500.0,0.0002215,2]
[311771351,1705384244599,-607.99,0.0002215,2]
[311771352,1705384244608,-500.0,0.0002215,2]
[311771353,1705384244617,-500.0,0.0002215,2]
[311771354,1705384244626,-500.0,0.0002215,5]
[311771355,1705384244636,-500.0,0.0002215,2]
[311771356,1705384244645,-2738.27,0.0002215,2]
[311771357,1705384244655,-2729.69,0.0002215,2]
[311771358,1705384244664,-500.0,0.0002215,2]
[311771359,1705384244673,-500.0,0.0002215,2]
[311771360,1705384244682,-579.25,0.0002215,2]
[311771361,1705384244691,-710.73,0.0002215,2]
[311771362,1705384244701,-500.0,0.0002215,2]
[311771363,1705384244710,-16206.79,0.0002215,2]
[311771364,1705384244719,-1060.52,0.0002215,2]
[311771365,1705384244728,-500.0,0.0002215,2]
[311771366,1705384244738,-643.96,0.0002215,2]
[311771367,1705384244748,-2906.04,0.0002215,2]
[311771368,1705384244758,-438.87464679,0.0002215,2]
[311771369,1705384244768,-579.57,0.0002215,2]
[311771370,1705384244777,-500.0,0.0002215,2]
[311771371,1705384244787,-500.0,0.0002215,2]
[311771372,1705384244796,-514.13,0.0002215,2]
[311771373,1705384244807,-500.0,0.0002215,2]
[311771374,1705384244816,-500.0,0.0002215,2]
[311771375,1705384244825,-500.0,0.0002215,2]
[311771376,1705384244835,-500.0,0.0002215,2]
[311771377,1705384244844,-555.76,0.0002215,2]
[311771378,1705384244853,-662.47,0.0002215,2]
[311771379,1705384244862,-192.07237849,0.0002215,2]
[311771380,1705384244871,-1651.88,0.0002215,2]
[311771381,1705384244880,-518.05,0.0002215,2]
[311771382,1705384244891,-979.75,0.0002215,2]
[311771383,1705384244900,-798.78,0.0002215,2]
[311771384,1705384244910,-500.0,0.0002215,2]
[311771385,1705384244920,-500.0,0.0002215,2]
[311771386,1705384244929,-1112.48,0.0002215,2]
[311771387,1705384244939,-506.49523854,0.0002215,2]
[311771388,1705384244950,-1213.7,0.0002215,2]
[311771389,1705384244959,-500.0,0.0002215,2]
[311771390,1705384244979,-629.78,0.0002215,2]
[311771391,1705384244990,-3017.48,0.0002215,2]
[311771392,1705384245000,-569.66,0.0002215,2]
[311771393,1705384245010,-500.0,0.0002215,2]
[311771394,1705384245020,-419.89388479,0.0002215,2]
[311771395,1705384245030,-500.0,0.0002215,2]
[311771396,1705384245039,-724.24,0.0002215,2]
[311771397,1705384245049,-500.0,0.0002215,2]
[311771398,1705384245059,-500.0,0.0002215,2]
[311771399,1705384245080,-608.74,0.0002215,2]
[311771400,1705384245093,-500.0,0.0002215,2]
[311771401,1705384245102,-500.0,0.0002215,2]
[311771402,1705384245111,-500.0,0.0002215,2]
[311771403,1705384245120,-500.0,0.0002215,2]
[311771404,1705384245129,-1362.91,0.0002215,2]
[311771405,1705384245138,-587.88,0.0002215,2]
[311771406,1705384245147,-500.0,0.0002215,2]
[311771407,1705384245156,-500.0,0.0002215,2]
[311771408,1705384245165,-578.97,0.0002215,2]
[311771409,1705384245174,-617.27,0.0002215,2]
[311771410,1705384245183,-500.0,0.0002215,2]
[311771411,1705384245193,-500.0,0.0002215,2]
[311771412,1705384245202,-613.48,0.0002215,2]
[311771413,1705384245211,-500.0,0.0002215,2]
[311771414,1705384245220,-1051.84,0.0002215,2]
[311771415,1705384245229,-500.0,0.0002215,2]
[311771416,1705384245238,-500.0,0.0002215,2]
[311771417,1705384245247,-500.0,0.0002215,2]
[311771418,1705384245256,-805.31,0.0002215,2]
[311771419,1705384245265,-500.0,0.0002215,2]
[311771421,1705384245274,-2174.98,0.0002215,2]
[311771422,1705384245283,-768.87,0.0002215,2]
[311771423,1705384245293,-500.0,0.0002215,2]
[311771424,1705384245302,-1041.95,0.0002215,2]
[311771425,1705384245311,-500.0,0.0002215,2]
[311771426,1705384245320,-500.0,0.0002215,2]
[311771428,1705384245330,-500.0,0.0002215,2]
[311771431,1705384245339,-500.0,0.0002215,2]
[311771433,1705384245350,-1229.95,0.0002215,2]
[311771434,1705384245359,-973.67,0.0002215,2]
[311771435,1705384245369,-316.30478463,0.00022151,2]
[311771436,1705384245379,-608.58950182,0.00022151,2]
[311771437,1705384245388,-500.0,0.00022151,2]
[311771438,1705384245398,-500.0,0.00022151,2]
[311771439,1705384245407,-505.69840945,0.00022151,2]
[311771440,1705384245416,-675.73,0.00022151,2]
[311771441,1705384245425,-1111.26,0.00022151,2]
[311771442,1705384245434,-683.88,0.00022151,2]
[311771443,1705384245444,-711.97,0.00022151,2]
[311771444,1705384245456,-616.64,0.00022151,2]
[311771445,1705384245466,-1429.25,0.00022151,2]
[311771446,1705384245475,-850.56,0.00022151,2]
[311771447,1705384245484,-833.59,0.00022151,2]
[311771448,1705384245494,-1107.48,0.00022151,2]
[311771449,1705384245510,-559.54,0.00022151,2]
[311771450,1705384245519,-533.68,0.00022151,2]
[311771451,1705384245529,-943.33,0.00022151,2]
[311771452,1705384245539,-2689.38,0.00022151,2]
[311771453,1705384245550,-587.18,0.00022151,2]
[311771454,1705384245559,-918.91,0.00022151,2]
[311771455,1705384245568,-2490.07,0.00022151,2]
[311771456,1705384245579,-1027.49,0.00022151,2]
[311771457,1705384245588,-817.43,0.00022151,2]
[311771458,1705384245598,-830.09,0.00022151,2]
[311771459,1705384245608,-737.06,0.00022151,2]
[311771460,1705384245617,-660.05,0.00022151,2]
[311771461,1705384245627,-545.74,0.00022151,2]
[311771462,1705384245636,-500.0,0.00022151,2]
[311771463,1705384245646,-685.36,0.00022151,2]
[311771464,1705384245655,-500.0,0.00022151,2]
[311771465,1705384245665,-706.2,0.00022151,2]
[311771466,1705384245674,-500.0,0.00022151,2]
[311771467,1705384245684,-588.36,0.00022151,2]
[311771468,1705384245693,-916.88,0.00022151,2]
[311771469,1705384245703,-502.99,0.00022151,2]
[311771470,1705384245713,-550.04,0.00022151,2]
[311771471,1705384245723,-500.0,0.00022151,2]
[311771472,1705384245732,-523.3,0.00022151,2]
[311771473,1705384245742,-500.0,0.00022151,2]
[311771474,1705384245751,-1055.21,0.00022151,2]
[311771475,1705384245760,-500.0,0.00022151,2]
[311771476,1705384245770,-544.09,0.00022151,2]
[311771477,1705384245780,-841.32,0.00022151,2]
[311771478,1705384245790,-1154.82,0.00022151,2]
[311771479,1705384245799,-500.0,0.00022151,2]
[311771480,1705384245809,-500.0,0.00022152,2]
[311771481,1705384245819,-500.0,0.00022152,2]
[311771482,1705384245831,-571.81,0.00022152,2]
[311771483,1705384245840,-500.0,0.00022152,2]
[311771484,1705384245850,-500.0,0.00022152,2]
[311771485,1705384245859,-500.0,0.00022152,2]
[311771486,1705384245869,-500.0,0.00022152,2]
[311771487,1705384245878,-500.0,0.00022152,2]
[311771488,1705384245887,-500.0,0.00022152,2]
[311771489,1705384245896,-500.0,0.00022152,2]